bitfinex-derivatives/quotes_ETHF0:USTF0_20251116
["timestamp","ask_amount","ask_price","bid_price","bid_amount"]
[1763313118960,4.15647082,3063.2,3063.1,0.00489628]
[1763313119658,2.55591257,3063.2,3063.1,0.00489628]
[1763313119858,4.15647082,3063.2,3063.1,0.00489628]
[1763313120960,2.55591257,3063.2,3063.1,0.40739628]
[1763313121166,2.01935031,3063.2,3063.1,0.40739628]
[1763313121758,0.85494926,3063.2,3063.1,0.40739628]
[1763313122352,1.72839679,3063.2,3063.1,0.40739628]
[1763313124253,0.85494926,3063.2,3063.1,0.40739628]
[1763313125463,0.85248112,3063.3,3063.2,0.4025]
[1763313125660,0.85248112,3063.3,3063.1,0.00489628]
[1763313125868,0.85248112,3063.2,3063.1,0.40739628]
[1763313126559,0.85248112,3063.3,3063.1,0.40739628]
[1763313126758,0.85248112,3063.2,3063.1,0.40739628]
[1763313126965,0.85248112,3063.2,3063.1,0.00489628]
[1763313129965,2.01719953,3063.2,3063.1,0.40739628]
[1763313130669,1.72581311,3063.2,3063.1,0.40739628]
[1763313130870,0.85248112,3063.2,3063.1,0.40739628]
[1763313133478,0.85248112,3063.2,3063.1,0.00489628]
[1763313135467,2.55344443,3063.2,3063.1,0.00489628]
[1763313136673,0.85248112,3063.2,3063.1,0.00489628]
[1763313137371,2.59692041,3063.2,3063.1,0.00489628]
[1763313139274,2.59645731,3063.2,3063.1,0.00489628]
[1763313144083,9.10407468,3063.2,3062.5,0.3333]
[1763313144374,2.47207093,3062.6,3062.5,0.2281]
[1763313144580,3.32455205,3062.6,3062.5,0.2281]
[1763313145473,0.00489628,3062.9,3062.8,0.3822]
[1763313147779,0.00489628,3062.9,3062.5,3.4359]
[1763313148775,0.00489628,3062.9,3062.8,0.3822]
[1763313148982,0.00489628,3062.9,3062.8,0.3983]
[1763313150984,0.00489628,3062.9,3062.5,3.4359]
[1763313152279,1.60055825,3062.7,3062.2,0.00769623]
[1763313152582,1.60055825,3062.3,3062.2,0.00769623]
[1763313153083,4.80835825,3062.3,3062.2,0.00769623]
[1763313154171,3.2078,3062.3,3062.2,0.40599623]
[1763313154486,4.37010217,3062.8,3062.5,0.6257]
[1763313155186,1.60055825,3062.6,3062.5,0.2274]
[1763313157586,2.44284273,3062.6,3062.5,0.2274]
[1763313158178,2.44284273,3062.6,3062.0,0.3721]
[1763313158387,1.60055825,3062.1,3062.0,0.3721]
[1763313158587,2.44284273,3062.1,3062.0,0.3721]
[1763313158887,1.60055825,3062.1,3062.0,0.3721]
[1763313159291,4.80835825,3062.4,3062.0,0.37524378]
[1763313159490,0.84206176,3062.3,3062.0,0.37524378]
[1763313161593,0.84206176,3062.3,3062.2,0.3983]
[1763313162093,0.84206176,3062.3,3062.0,0.37524378]
[1763313164187,0.84206176,3062.3,3062.2,0.3983]
[1763313165497,0.84206176,3062.3,3062.0,0.37524378]
[1763313165696,0.84206176,3062.3,3062.2,0.3983]
[1763313169298,0.84206176,3062.3,3062.0,0.37524378]
[1763313169698,1.60055825,3062.1,3062.0,0.37524378]
[1763313169896,2.44262001,3062.1,3062.0,0.37524378]
[1763313170196,2.44262001,3062.1,3062.0,0.77354378]
[1763313173699,2.44262001,3062.1,3061.3,3.2078]
[1763313173900,1.60055825,3061.6,3061.0,0.2281]
[1763313174199,4.80835825,3061.1,3060.3,3.2078]
[1763313174391,1.60055825,3060.7,3060.3,3.2078]
[1763313174889,1.60315481,3060.7,3060.6,0.3983]
[1763313175399,0.00259656,3060.7,3060.6,0.3983]
[1763313176297,1.60055825,3061.2,3060.6,0.3983]
[1763313176298,3.2078,3061.5,3061.4,0.3983]
[1763313176601,1.60055825,3061.9,3061.8,0.3983]
[1763313176806,2.44190912,3061.9,3061.8,0.3983]
[1763313177298,2.44470412,3061.9,3061.8,0.3983]
[1763313178801,2.44470412,3061.9,3061.5,0.2274]
[1763313179000,1.60335325,3061.9,3061.5,0.2274]
[1763313179402,0.83985995,3061.8,3061.5,0.2274]
[1763313179699,1.60335325,3061.9,3061.5,0.2274]
[1763313180603,1.60055825,3061.6,3061.5,0.6056]
[1763313180798,1.60207905,3061.6,3061.5,0.6056]
[1763313181501,0.002795,3061.9,3061.8,0.3782]
[1763313183496,1.60487405,3061.9,3061.6,3.2078]
[1763313183700,1.60207905,3061.7,3061.5,0.2274]
[1763313184002,1.60207905,3061.6,3061.5,0.6056]
[1763313185300,1.60207905,3061.6,3061.2,3.19401855]
[1763313185495,6.4119581,3061.3,3060.5,0.23011978]
[1763313185802,1.60207905,3060.6,3060.5,0.23011978]
[1763313186808,2.40507781,3060.7,3060.5,0.23011978]
[1763313187207,2.40507781,3060.7,3059.5,0.2287]
[1763313187208,6.84020843,3060.6,3059.5,0.2287]
[1763313187410,5.61287781,3059.6,3059.0,3.4365]
[1763313187700,5.61287781,3059.2,3058.7,0.03269416]
[1763313187902,2.40507781,3058.8,3058.7,0.03269416]
[1763313188093,0.8413501,3058.8,3058.7,0.0352741]
[1763313188296,0.0024991,3058.8,3058.7,0.4134741]
[1763313188899,3.2102991,3058.8,3058.4,0.00489628]
[1763313189102,0.83593709,3058.7,3058.5,0.2287]
[1763313189402,3.2102991,3058.8,3058.5,0.2287]
[1763313190007,3.2102991,3058.8,3058.5,0.23157446]
[1763313191102,3.2078,3058.6,3058.5,0.23157446]
[1763313191512,3.2078,3058.6,3058.5,0.00287446]
[1763313192701,3.2078,3058.6,3058.0,0.2287]
[1763313192901,0.0024991,3058.8,3058.0,0.2287]
[1763313192902,3.2078,3058.2,3058.0,0.2287]
[1763313193705,3.2078,3058.2,3058.0,0.23260412]
[1763313195200,3.2078,3058.2,3057.8,0.00490436]
[1763313195405,2.40507781,3058.0,3057.8,0.00490436]
[1763313195914,2.40507781,3058.1,3057.8,0.00490436]
[1763313196107,2.40507781,3058.1,3058.0,0.2238]
[1763313196305,2.40507781,3058.1,3058.0,0.22628038]
[1763313198613,2.40507781,3058.1,3058.0,0.00248038]
[1763313199207,2.40507781,3058.1,3058.0,0.22628038]
[1763313200313,2.40507781,3058.1,3058.0,0.00248038]
[1763313201714,2.40507781,3058.1,3058.0,0.22628038]
[1763313204125,3.2078,3058.2,3058.1,0.3558]
[1763313204816,3.2078,3058.2,3058.0,0.22628038]
[1763313205322,2.40507781,3058.3,3058.0,0.22628038]
[1763313206224,2.40507781,3058.3,3058.2,0.3558]
[1763313208416,3.2078,3058.6,3058.0,0.22628038]
[1763313208417,3.2078,3058.6,3058.5,0.5796]
[1763313209230,4.03933767,3058.6,3058.5,0.2238]
[1763313209627,0.0024991,3058.8,3058.7,0.3508]
[1763313209834,0.0024991,3058.8,3058.5,0.2238]
[1763313212228,3.2078,3058.6,3058.5,0.2238]
[1763313212428,4.03981181,3058.6,3058.5,0.2238]
[1763313212634,4.89625295,3058.6,3058.5,0.2238]
[1763313213233,5.19487119,3058.6,3058.5,0.2238]
[1763313213832,6.29140537,3058.6,3058.0,0.22628038]
[1763313214026,3.55406332,3058.1,3058.0,0.22628038]
[1763313214227,3.23708962,3058.1,3058.0,0.22628038]
[1763313214830,4.96359454,3058.1,3058.0,0.22628038]
[1763313215341,3.08360537,3058.1,3058.0,0.22628038]
[1763313215530,0.83201181,3058.1,3058.0,0.22628038]
[1763313216228,0.83201181,3058.1,3057.8,3.21270436]
[1763313216429,2.31346466,3057.9,3057.8,3.21270436]
[1763313216631,3.14547647,3057.9,3057.8,3.21270436]
[1763313217437,0.83201181,3057.9,3057.8,3.56581576]
[1763313219334,0.83201181,3057.9,3057.8,3.21501576]
[1763313220438,0.83201181,3057.9,3057.8,3.56581576]
[1763313221438,3.1508863,3057.9,3057.8,3.56581576]
[1763313222237,0.83201181,3057.9,3057.8,3.56581576]
[1763313225236,2.19058124,3058.0,3057.9,0.3508]
[1763313225440,0.83281829,3058.0,3057.9,0.3508]
[1763313226140,1.99491567,3058.0,3057.9,6.3508]
[1763313226337,0.59987146,3058.0,3057.9,6.3508]
[1763313226540,1.16209738,3058.1,3058.0,0.3508]
[1763313226741,0.71002837,3058.3,3058.2,0.3508]
[1763313226944,0.0024991,3058.8,3058.2,3.2078]
[1763313227134,0.0024991,3058.8,3058.7,3.2078]
[1763313228241,2.40507781,3059.4,3058.7,9.2078]
[1763313228438,0.1474,3059.5,3058.7,3.2078]
[1763313229442,0.00914268,3059.1,3058.7,3.2078]
[1763313229637,0.1993,3059.0,3058.7,3.2078]
[1763313231034,0.3578,3058.8,3058.7,3.2078]
[1763313231437,0.3578,3058.3,3058.2,3.2078]
[1763313231642,0.1993,3058.5,3058.2,3.2078]
[1763313240946,0.3578,3058.3,3058.2,3.2078]
[1763313241347,0.1993,3058.5,3058.2,3.2078]
[1763313241853,0.78126447,3058.9,3058.2,3.2078]
[1763313242151,0.2364,3058.5,3058.2,3.2078]
[1763313243854,0.4053,3058.3,3058.2,3.2078]
[1763313244249,0.2364,3058.5,3058.2,3.2078]
[1763313246254,0.1993,3059.0,3058.2,3.2078]
[1763313246454,0.1993,3059.0,3058.9,3.2078]
[1763313247149,0.6046,3059.0,3058.9,3.2078]
[1763313247352,0.2364,3058.5,3058.4,3.2078]
[1763313249751,0.1993,3059.0,3058.4,3.2078]
[1763313250357,0.2364,3058.5,3058.4,3.2078]
[1763313257262,0.2173,3058.5,3058.4,3.2078]
[1763313258762,0.5899,3058.5,3058.4,3.2078]
[1763313259858,1.37173412,3058.5,3058.4,3.2078]
[1763313260054,0.99913412,3058.5,3058.4,3.2078]
[1763313260258,0.2173,3058.5,3058.4,3.2078]
[1763313266168,0.5899,3058.5,3058.4,3.2078]
[1763313266959,0.2173,3058.0,3057.9,3.2078]
[1763313268161,0.78137897,3058.4,3057.9,3.2078]
[1763313268361,5.01201991,3059.0,3058.3,3.2078]
[1763313268553,0.78139911,3058.9,3058.3,3.2078]
[1763313269266,0.2264,3058.5,3058.3,3.2078]
[1763313271874,0.78144494,3058.9,3058.3,3.2078]
[1763313272174,0.00914268,3059.1,3058.8,3.2078]
[1763313272677,1.82221991,3060.0,3058.9,2.34896644]
[1763313272870,1.82221991,3060.0,3059.4,3.2078]
[1763313273072,0.4912,3059.5,3059.0,3.2078]
[1763313273473,0.1474,3059.5,3059.0,3.2078]
[1763313273666,0.14979923,3059.5,3059.0,3.2078]
[1763313274378,0.3438,3059.1,3059.0,3.2078]
[1763313275580,0.3438,3059.1,3058.1,2.34896644]
[1763313275581,0.2264,3059.0,3058.6,3.2078]
[1763313278571,0.14979923,3059.5,3058.6,3.2078]
[1763313278880,0.00239923,3059.5,3059.1,3.2078]
[1763313279381,2.636,3059.9,3059.1,3.2078]
[1763313279571,3.4342,3061.0,3059.8,3.2078]
[1763313279779,3.4342,3061.0,3060.5,3.2078]
[1763313280172,0.2264,3061.0,3060.5,3.2078]
[1763313280474,0.00293341,3061.0,3060.9,3.2078]
[1763313281877,3.2078,3061.9,3060.9,3.2078]
[1763313281878,5.93596031,3062.3,3060.9,9.2078]
[1763313282072,2.32073167,3062.9,3060.8,0.03313936]
[1763313282073,3.2078,3062.7,3061.7,3.2078]
[1763313282881,0.23064711,3062.0,3061.7,3.2078]
[1763313283283,0.23064711,3062.0,3061.8,0.03313936]
[1763313285182,0.3438,3061.9,3061.8,0.03313936]
[1763313285379,0.23064711,3062.0,3061.7,3.2078]
[1763313285380,0.3438,3061.8,3061.7,3.2078]
[1763313285585,0.3438,3061.8,3061.7,0.03313936]
[1763313286984,0.3438,3061.8,3060.8,3.2078]
[1763313286985,0.2264,3061.0,3060.8,3.2078]
[1763313287371,0.3438,3060.9,3060.8,3.2078]
[1763313287669,0.2264,3061.0,3060.8,3.2078]
[1763313288681,0.2264,3061.5,3060.8,3.2078]
[1763313288876,0.2264,3061.5,3061.4,3.2078]
[1763313289476,0.2264,3061.5,3061.0,3.2078]
[1763313290572,0.3438,3061.1,3061.0,3.2078]
[1763313292082,0.3438,3061.1,3060.5,0.00250579]
[1763313292083,0.2264,3061.0,3060.6,3.2078]
[1763313292476,0.3438,3060.7,3060.6,3.2078]
[1763313292785,0.2264,3061.0,3060.6,3.2078]
[1763313294285,0.2264,3061.0,3060.7,2.041]
[1763313298892,0.3438,3060.8,3060.7,2.041]
[1763313299079,0.2264,3061.0,3060.7,2.041]
[1763313299888,0.2264,3061.5,3060.8,2.041]
[1763313300077,0.2264,3061.5,3061.4,3.2078]
[1763313300479,0.00490436,3062.2,3061.4,3.2078]
[1763313300679,0.00490436,3062.2,3061.9,3.2078]
[1763313301477,4.36e-06,3062.2,3061.9,3.2078]
[1763313302382,0.00398157,3062.2,3061.9,3.2078]
[1763313302587,0.2164,3062.5,3061.9,3.2078]
[1763313302782,0.2164,3063.0,3062.4,3.2078]
[1763313302985,0.3578,3061.9,3061.8,3.2078]
[1763313303488,0.2164,3062.0,3061.8,3.2078]
[1763313303695,0.3578,3061.7,3061.6,0.00490436]
[1763313303993,0.3578,3061.3,3061.2,3.2078]
[1763313304382,0.2164,3061.5,3061.2,3.2078]
[1763313304586,0.22009724,3062.0,3061.2,3.2078]
[1763313304892,0.22009724,3062.0,3061.9,3.2078]
[1763313305591,0.57789724,3062.0,3061.9,3.2078]
[1763313305890,2.97891356,3062.0,3061.9,3.2078]
[1763313306291,2.97891356,3062.0,3061.5,3.2078]
[1763313306693,0.57789724,3062.0,3061.5,3.2078]
[1763313308481,0.77834314,3061.9,3061.5,3.2078]
[1763313308693,0.22009724,3062.0,3061.5,3.2078]
[1763313309199,1.64480038,3062.3,3061.9,3.2078]
[1763313309402,0.2164,3063.0,3061.9,4.96371028]
[1763313309690,0.2164,3062.5,3062.3,3.2078]
[1763313310285,0.00248198,3062.5,3062.3,3.2078]
[1763313312678,0.2164,3063.0,3062.3,3.2078]
[1763313312894,0.2164,3063.0,3062.9,3.2078]
[1763313313699,0.22024225,3063.0,3062.9,3.21198757]
[1763313314796,0.57804225,3063.0,3062.9,3.21198757]
[1763313315095,0.22024225,3063.0,3062.9,3.21198757]
[1763313316197,0.57804225,3063.0,3062.9,3.21198757]
[1763313316589,0.22024225,3063.0,3062.9,3.21198757]
[1763313317692,0.59814225,3063.0,3062.9,3.21198757]
[1763313317898,0.22024225,3063.0,3062.9,3.21198757]
[1763313318497,0.22024225,3063.0,3062.9,0.00418757]
[1763313318796,0.59814225,3063.0,3062.9,0.00418757]
[1763313320307,0.22024225,3063.0,3062.9,0.00418757]
[1763313320802,0.22024225,3063.0,3062.9,3.21198757]
[1763313322896,0.59814225,3063.0,3062.9,3.21198757]
[1763313324006,0.22024225,3063.0,3062.9,3.21198757]
[1763313332524,0.22024225,3063.0,3062.9,3.4790893]
[1763313335518,0.22024225,3063.0,3062.9,3.21198757]
[1763313336924,0.21504225,3063.0,3062.9,3.21198757]
[1763313337922,0.21504225,3063.0,3062.9,3.47663041]
[1763313338427,0.21504225,3063.0,3062.9,5.23254069]
[1763313339122,0.21504225,3063.0,3062.9,3.47663041]
[1763313343630,0.21504225,3063.0,3062.9,3.21198757]
[1763313343931,0.55954225,3063.0,3062.9,3.21198757]
[1763313345033,0.21504225,3063.0,3062.9,3.21198757]
[1763313345934,1.73736571,3064.1,3062.9,3.21198757]
[1763313346230,2.33053227,3066.4,3064.5,3.2078]
[1763313346528,0.2112,3068.0,3066.3,3.2078]
[1763313346725,3.49574255,3067.9,3066.2,2.92268029]
[1763313346926,0.3445,3067.6,3067.5,2.40101632]
[1763313347118,6.70640543,3067.9,3067.5,2.40101632]
[1763313347119,3.49574255,3067.9,3067.5,8.96220374]
[1763313347324,0.0346,3068.7,3067.8,4.72839189]
[1763313347632,0.0346,3068.7,3068.4,2.40101632]
[1763313347828,0.0346,3068.7,3068.4,3.35338742]
[1763313348335,11.758,3071.2,3068.4,3.35338742]
[1763313348336,0.2112,3070.8,3068.7,3.2078]
[1763313348530,0.2112,3070.8,3068.5,6.0]
[1763313348531,3.2078,3071.0,3070.7,2.40101632]
[1763313348736,0.2112,3071.4,3070.8,0.55476213]
[1763313349030,0.2112,3070.2,3069.5,3.2078]
[1763313349223,3.2078,3069.9,3069.5,3.21068845]
[1763313349829,6.0,3069.8,3069.5,0.00288845]
[1763313350028,9.2078,3069.9,3069.5,0.00288845]
[1763313350429,3.2078,3069.9,3069.5,0.00288845]
[1763313350627,0.2145711,3070.2,3069.5,3.21068845]
[1763313350930,0.2145711,3070.2,3069.9,3.2078]
[1763313351136,0.0033711,3070.2,3070.0,2.40101632]
[1763313351628,0.2112,3071.4,3070.0,8.40101632]
[1763313351829,3.419,3072.0,3071.3,3.2078]
[1763313352028,3.419,3072.0,3071.3,3.21268805]
[1763313352329,0.2112,3071.6,3071.3,3.21268805]
[1763313352633,0.21410398,3071.6,3071.3,3.21268805]
[1763313353029,0.00290398,3071.6,3071.3,3.21268805]
[1763313353231,3.2078,3072.7,3071.5,2.40101632]
[1763313353441,3.2078,3072.7,3071.9,3.2078]
[1763313353830,0.2112,3071.6,3071.5,3.2078]
[1763313354029,0.2112,3071.6,3071.3,0.00488805]
[1763313354334,0.21419425,3071.6,3071.3,0.00865457]
[1763313356532,0.00299425,3071.6,3071.4,3.2078]
[1763313356937,0.2112,3072.3,3071.4,3.2078]
[1763313357230,3.2078,3072.6,3072.0,2.40101632]
[1763313357437,3.419,3073.0,3072.0,5.60881632]
[1763313357824,3.42176898,3073.0,3072.0,5.60881632]
[1763313358128,0.2112,3072.3,3072.0,3.2078]
[1763313358531,3.2078,3072.2,3071.3,0.00865457]
[1763313358835,3.2078,3072.2,3071.6,3.2078]
[1763313360441,0.2112,3072.3,3071.6,3.2078]
[1763313360643,3.2078,3072.6,3072.0,3.2078]
[1763313361231,3.42176898,3073.0,3072.0,5.60881632]
[1763313361536,0.00276898,3073.0,3072.5,3.2078]
[1763313361741,3.2078,3073.5,3072.9,3.2078]
[1763313362032,0.2112,3074.4,3073.2,2.40101632]
[1763313362033,0.0346,3073.7,3073.2,2.40101632]
[1763313362238,0.0346,3073.7,3073.4,3.2078]
[1763313362432,3.419,3074.4,3073.6,2.40101632]
[1763313362638,3.42141693,3074.4,3073.8,3.2078]
[1763313362840,1.693e-05,3074.4,3074.3,3.2078]
[1763313363036,0.50851693,3074.4,3074.3,3.2078]
[1763313363243,0.50851693,3074.4,3073.8,3.2078]
[1763313363427,0.50851693,3074.4,3073.8,2.56285309]
[1763313363633,0.5085,3073.0,3072.9,0.00488805]
[1763313363843,0.5085,3073.0,3070.5,2.3146901]
[1763313363844,3.7163,3073.0,3072.1,3.2078]
[1763313364041,0.5085,3072.3,3072.1,3.2078]
[1763313364338,3.2078,3072.5,3071.5,6.03567829]
[1763313364545,3.2078,3072.9,3072.1,3.2078]
[1763313364836,3.2078,3072.9,3072.2,0.00487979]
[1763313365042,3.7163,3073.7,3072.5,6.03567829]
[1763313365243,0.5085,3073.7,3072.9,3.2078]
[1763313365431,3.2078,3074.2,3073.3,3.2078]
[1763313365630,0.50851693,3074.4,3073.8,3.2078]
[1763313365843,1.693e-05,3074.4,3073.8,3.21101688]
[1763313366137,1.693e-05,3074.4,3074.2,3.2078]
[1763313366346,3.2078,3075.2,3074.2,3.2078]
[1763313366544,3.2078,3075.2,3074.8,3.2078]
[1763313366747,0.5085,3075.8,3074.8,3.2078]
[1763313366748,3.2078,3076.7,3074.8,3.2078]
[1763313366943,0.5085,3076.8,3075.8,3.2078]
[1763313367143,3.7163,3077.6,3076.4,3.2078]
[1763313367547,3.71866822,3077.6,3077.0,3.2078]
[1763313367744,3.71866822,3077.6,3077.0,3.12224934]
[1763313367948,0.51086822,3077.6,3077.0,3.12224934]
[1763313368554,0.00236822,3077.6,3077.2,2.82787829]
[1763313368847,3.2078,3079.0,3077.5,3.2078]
[1763313369047,3.2078,3078.6,3077.6,3.2078]
[1763313369249,0.5085,3079.8,3078.5,3.2078]
[1763313369450,0.5085,3079.8,3077.6,3.47446315]
[1763313369451,3.7163,3078.9,3078.1,3.2078]
[1763313369744,3.7163,3078.9,3078.5,3.2078]
[1763313369745,0.5085,3078.9,3078.5,3.2078]
[1763313369953,3.7163,3079.8,3078.5,3.2078]
[1763313370144,3.7163,3079.8,3077.9,0.00487147]
[1763313370145,3.7163,3079.8,3079.0,3.2078]
[1763313370347,3.2078,3080.2,3079.5,3.2078]
[1763313370742,0.5085,3080.7,3080.0,3.2078]
[1763313370943,3.2078,3081.5,3080.6,3.2078]
[1763313371651,0.5085,3081.6,3081.4,3.2078]
[1763313371845,0.00333605,3081.6,3081.4,3.2078]
[1763313372041,0.00333605,3081.6,3080.0,0.00227757]
[1763313372042,0.04450517,3081.5,3081.2,0.00487147]
[1763313372242,0.04450517,3081.5,3080.0,0.00227757]
[1763313372243,0.5085,3081.0,3080.0,3.21007757]
[1763313372447,0.5085,3081.0,3077.0,2.89336263]
[1763313372448,0.5085,3080.0,3078.9,3.2078]
[1763313372947,0.5085,3081.0,3079.6,3.2078]
[1763313373146,3.25230517,3080.3,3079.5,3.2078]
[1763313373445,0.04450517,3080.3,3080.0,0.00487147]
[1763313373653,0.5085,3080.0,3079.5,0.00293585]
[1763313373847,3.7163,3080.0,3079.5,0.00293585]
[1763313374047,3.2078,3080.5,3079.5,0.00293585]
[1763313374244,0.03900517,3079.8,3079.6,3.42153046]
[1763313374443,0.00484374,3080.6,3079.9,3.2078]
[1763313374648,0.5085,3082.0,3080.5,3.2078]
[1763313374952,0.5085,3082.0,3081.0,3.2078]
[1763313375343,3.2078,3081.3,3080.6,3.2078]
[1763313375544,0.5802,3081.0,3080.6,3.21267147]
[1763313375744,3.2078,3080.7,3080.6,0.00487147]
[1763313376055,3.2078,3080.7,3079.7,3.2078]
[1763313376256,3.2078,3080.2,3079.7,3.2078]
[1763313376453,3.2078,3079.8,3079.5,0.00293585]
[1763313377251,0.5802,3079.0,3078.8,3.2078]
[1763313377452,3.2078,3079.2,3078.8,3.2078]
[1763313377652,0.5802,3080.0,3078.8,3.2078]
[1763313377850,3.2078,3080.7,3079.7,3.2078]
[1763313378047,0.00355935,3080.7,3080.6,3.2078]
[1763313378247,0.00355935,3080.7,3080.0,3.2078]
[1763313378447,0.00355935,3080.7,3080.5,3.2078]
[1763313379147,3.2078,3081.9,3080.5,3.2078]
[1763313379348,3.2078,3081.9,3081.2,3.2078]
[1763313379851,3.2078,3081.4,3080.3,3.2078]
[1763313380057,3.788,3081.0,3080.3,3.2078]
[1763313380244,0.5802,3081.0,3080.7,3.2078]
[1763313380440,3.2078,3080.9,3079.9,0.00487147]
[1763313380645,0.5802,3080.0,3079.1,3.2078]
[1763313380840,0.5802,3079.0,3078.2,3.2078]
[1763313381050,3.2078,3078.7,3078.2,3.2078]
[1763313381246,3.2078,3079.2,3078.6,3.2078]
[1763313381452,3.2078,3079.6,3078.7,3.2078]
[1763313381653,0.00487147,3079.5,3079.1,3.2078]
[1763313381963,3.2078,3079.2,3078.8,0.00487147]
[1763313382149,0.5802,3078.9,3078.8,0.00487147]
[1763313382354,0.5802,3078.9,3078.8,3.21267147]
[1763313383060,0.5802,3078.9,3078.8,0.00487147]
[1763313383256,0.60085997,3078.9,3078.8,0.00487147]
[1763313383566,6.60085997,3078.9,3078.7,0.00311917]
[1763313383857,3.2078,3078.8,3078.7,0.00311917]
[1763313384160,0.60085997,3078.9,3078.7,3.21091917]
[1763313384360,0.02065997,3078.8,3078.7,3.21091917]
[1763313385058,0.02065997,3078.8,3078.7,0.00311917]
[1763313385657,6.02065997,3078.8,3078.7,0.00311917]
[1763313386058,0.5802,3078.0,3077.9,3.2078]
[1763313386260,0.60085997,3078.0,3076.8,3.2078]
[1763313386562,0.5802,3077.0,3076.9,0.91286541]
[1763313386761,3.788,3077.0,3076.3,3.2078]
[1763313386953,3.2078,3076.6,3075.7,3.2078]
[1763313387155,0.00487147,3076.5,3075.8,0.00487147]
[1763313387353,3.2078,3075.9,3075.8,0.00487147]
[1763313387758,3.27296514,3075.9,3075.8,0.00487147]
[1763313388257,0.00487147,3076.5,3075.8,6.92075644]
[1763313388460,3.788,3078.0,3076.3,1.11771433]
[1763313388664,3.788,3078.0,3077.2,3.2078]
[1763313388856,3.788,3078.0,3077.3,0.91588497]
[1763313389058,0.5802,3078.0,3077.7,3.2078]
[1763313389358,0.5802,3078.0,3077.8,0.91588497]
[1763313389561,0.5802,3078.0,3077.2,3.2078]
[1763313389562,0.58902804,3078.0,3077.9,0.91588497]
[1763313389867,0.58902804,3078.0,3076.3,1.11771433]
[1763313389868,6.0,3077.9,3076.3,1.11771433]
[1763313390162,0.5816,3076.7,3076.3,0.00284553]
[1763313390362,0.5816,3076.7,3076.3,3.21064553]
[1763313390557,0.5816,3076.7,3076.3,4.32835986]
[1763313390955,0.5816,3076.7,3076.3,3.21064553]
[1763313391155,0.5816,3076.7,3076.3,0.00284553]
[1763313391357,3.2078,3076.4,3076.2,0.00487147]
[1763313391662,0.5816,3075.6,3074.9,6.10116263]
[1763313391868,3.2078,3075.4,3074.9,6.10116263]
[1763313392568,3.21080804,3075.4,3074.9,6.10521684]
[1763313392860,3.2078,3075.0,3074.9,2.89741684]
[1763313393067,3.2078,3075.0,3074.3,3.2078]
[1763313393262,6.0,3074.9,3074.5,5.6083288]
[1763313393566,3.2078,3074.6,3073.7,3.2078]
[1763313394265,3.2078,3074.6,3073.7,3.21168573]
[1763313394461,0.04450517,3074.2,3073.7,3.21168573]
[1763313395361,3.25230517,3074.2,3073.7,3.21168573]
[1763313395668,0.04450517,3074.0,3073.7,0.00388573]
[1763313396559,0.04450517,3073.9,3073.7,0.00388573]
[1763313397666,0.04450517,3073.8,3073.7,0.00388573]
[1763313397974,3.25230517,3073.8,3073.7,0.00388573]
[1763313398469,9.25230517,3073.8,3073.1,3.2078]
[1763313398665,0.04450517,3073.5,3073.1,3.2078]
[1763313399064,6.0,3073.4,3073.1,3.2078]
[1763313399258,9.2078,3073.4,3073.1,0.00378256]
[1763313399569,6.0,3073.3,3072.1,3.2078]
[1763313399865,0.04450517,3072.7,3072.1,3.2078]
[1763313400065,0.04450517,3072.7,3072.5,3.2078]
[1763313400572,0.04829788,3072.7,3072.5,3.21145268]
[1763313400758,0.04450517,3072.6,3072.5,0.00365268]
[1763313401464,6.04450517,3072.6,3072.3,0.5668]
[1763313401666,0.04450517,3072.6,3072.1,3.2078]
[1763313401965,0.00379271,3072.7,3072.1,3.2078]
[1763313401966,0.04450517,3072.4,3072.1,3.2078]
[1763313402558,0.04450517,3072.4,3072.1,3.21070051]
[1763313402862,0.00379271,3072.7,3072.1,3.21070051]
[1763313403262,0.04548822,3072.4,3072.1,3.21070051]
[1763313404279,0.04548822,3072.3,3072.1,3.21070051]
[1763313404469,0.04548822,3072.3,3072.1,0.00290051]
[1763313404674,6.04548822,3072.3,3072.1,0.00290051]
[1763313405173,6.0,3072.3,3072.1,0.00290051]
[1763313405375,6.04548822,3072.2,3072.1,0.00290051]
[1763313405675,0.04548822,3072.2,3072.1,0.00290051]
[1763313407976,9.25328822,3072.2,3072.1,0.00290051]
[1763313410582,0.04548822,3072.2,3072.1,3.21070051]
[1763313412084,0.04650784,3072.2,3072.1,3.21070051]
[1763313412580,0.04650784,3072.2,3072.1,0.00290051]
[1763313412781,3.25430784,3072.2,3072.1,0.00290051]
[1763313413998,3.2078,3069.1,3066.3,3.2078]
[1763313414296,3.2078,3066.9,3065.9,1.7186256]
[1763313414493,3.2078,3066.0,3065.0,3.2078]
[1763313414790,2.86116172,3065.2,3065.1,10.53223789]
[1763313414980,0.72006908,3066.0,3065.1,8.1376]
[1763313415176,0.04650784,3065.2,3065.0,0.00321178]
[1763313415376,0.00242763,3066.0,3065.9,8.1376]
[1763313415687,2.27614869,3066.3,3066.0,7.4042]
[1763313415882,5.48394869,3066.2,3066.0,0.5668]
[1763313416087,5.48394869,3066.2,3065.0,0.00321178]
[1763313416088,6.0,3066.1,3065.0,0.00321178]
[1763313416386,1.70394483,3065.2,3065.1,8.13517237]
[1763313416584,0.00423345,3065.2,3065.0,0.00321178]
[1763313417081,0.00423345,3065.2,3065.1,6.8374]
[1763313417288,6.00423345,3065.2,3065.0,0.00321178]
[1763313417477,0.00423345,3065.2,3065.0,0.00321178]
[1763313418286,0.00423345,3065.2,3065.1,11.76477237]
[1763313418989,0.00423345,3065.2,3065.0,0.00321178]
[1763313419186,0.00423345,3065.2,3065.1,6.8374]
[1763313419886,0.00423345,3065.2,3065.0,0.00321178]
[1763313420798,0.00423345,3065.2,3065.1,6.8374]
[1763313421097,0.00423345,3065.2,3065.0,0.00321178]
[1763313421286,6.0,3065.1,3063.6,3.7746]
[1763313421486,1.69430776,3063.8,3063.7,6.8700408]
[1763313421787,3.2078,3064.1,3063.8,6.8374]
[1763313421991,3.2078,3064.1,3063.7,0.0326408]
[1763313422183,1.69040968,3063.9,3063.7,0.0219496]
[1763313422382,6.0,3063.8,3063.7,0.0035088]
[1763313422599,3.2078,3063.2,3061.3,1.3874]
[1763313422786,1.12611885,3061.7,3061.4,8.13517237]